bitfinex-derivatives/quotes_ETHF0:USTF0_20250404
["timestamp","ask_amount","ask_price","bid_price","bid_amount"]
[1743735916105,0.00840925,1783.7,1783.4,3.21620925]
[1743735916308,2.58764925,1783.7,1783.5,1.12179]
[1743735916511,4.18,1783.6,1783.4,0.00840925]
[1743735916708,2.57931,1783.5,1783.4,0.00840925]
[1743735916905,0.00840925,1783.7,1783.6,1.12175]
[1743735917308,0.00840925,1783.7,1783.6,3.62175]
[1743735917509,0.00840925,1783.7,1783.6,1.87655]
[1743735917715,0.00840925,1783.7,1783.4,0.00840925]
[1743735918014,1.13009925,1783.7,1783.6,1.12175]
[1743735918313,0.00840925,1783.7,1783.6,1.12175]
[1743735918513,0.00840925,1783.7,1783.6,3.62175]
[1743735918711,4.7474,1784.4,1784.1,1.12139]
[1743735918909,1.12136,1784.3,1784.1,1.12139]
[1743735919110,4.7474,1784.4,1784.2,1.12134]
[1743735919312,4.32909,1784.4,1784.3,1.12131]
[1743735919916,0.00840925,1784.5,1784.3,1.12131]
[1743735920112,0.00840925,1784.5,1784.2,4.32912]
[1743735920417,1.12125,1784.4,1784.3,1.12131]
[1743735920615,1.12125,1784.4,1784.2,3.2078]
[1743735920817,1.12125,1784.4,1784.3,1.12131]
[1743735921110,1.12125,1784.4,1784.2,4.32913]
[1743735921310,1.12963925,1784.5,1784.3,1.12131]
[1743735921709,1.12125,1784.4,1784.3,1.12131]
[1743735922013,1.12964925,1784.5,1784.4,1.12125]
[1743735922511,0.00840925,1784.5,1784.2,3.2078]
[1743735922711,1.12156,1783.9,1783.8,5.0842]
[1743735923006,1.12163,1783.8,1783.7,1.12164]
[1743735923215,1.5016,1784.1,1783.7,6.01202]
[1743735923719,1.12157,1783.9,1783.8,1.12159]
[1743735923916,2.62308,1784.1,1783.7,6.01202]
[1743735924106,1.12131,1784.3,1783.9,2.80391]
[1743735924412,1.12131,1784.3,1784.2,4.32912]
[1743735924613,2.62859,1784.4,1784.3,1.12131]
[1743735924914,0.00840925,1784.5,1784.3,1.4764]
[1743735925114,0.00840925,1784.5,1784.4,4.32905]
[1743735925313,1.12958925,1784.5,1784.4,3.2078]
[1743735925515,1.12125,1784.4,1784.3,1.4764]
[1743735925717,1.5073,1784.4,1784.3,2.59771]
[1743735925911,0.00840925,1784.5,1784.4,1.12125]
[1743735926211,0.00840925,1784.5,1784.4,5.80545]
[1743735926710,0.00840925,1784.5,1784.4,8.30545]
[1743735926911,1.12091,1785.0,1784.9,1.12093]
[1743735927214,1.12094,1784.9,1784.8,1.12095]
[1743735927406,1.12094,1784.9,1784.8,1.4214]
[1743735927612,2.80234,1784.9,1784.5,4.32894]
[1743735927813,2.66472,1784.8,1784.4,4.2245]
[1743735928014,1.5437,1784.8,1784.7,1.12106]
[1743735928311,3.2078,1785.0,1784.9,1.12093]
[1743735928312,2.6646,1785.0,1784.9,1.12093]
[1743735928506,3.2078,1785.2,1784.8,1.4214]
[1743735928507,0.00840925,1784.9,1784.8,1.4214]
[1743735928808,0.00840925,1784.9,1784.8,2.54239]
[1743735929007,0.00840925,1784.9,1784.8,5.04239]
[1743735929812,2.66429,1785.5,1785.0,2.80203]
[1743735930011,2.66429,1785.5,1785.2,3.2078]
[1743735930212,2.66429,1785.5,1785.4,1.12062]
[1743735930505,3.2078,1785.6,1785.5,1.12056]
[1743735930711,1.12056,1785.5,1785.4,1.12058]
[1743735930917,0.00840925,1785.7,1785.4,0.00840925]
[1743735931116,1.12056,1785.5,1785.4,1.12899925]
[1743735931310,1.3916,1785.6,1785.4,0.00840925]
[1743735931514,1.12056,1785.5,1785.4,0.00840925]
[1743735931910,1.3916,1785.6,1785.4,0.00840925]
[1743735932113,1.12056,1785.5,1785.4,0.00840925]
[1743735932415,2.51213,1785.6,1785.5,1.12056]
[1743735933210,0.00840925,1785.7,1785.6,1.12049]
[1743735933620,0.00840925,1785.7,1785.6,6.82829]
[1743735934814,1.12019,1786.1,1786.0,1.1202]
[1743735935316,1.12028,1786.0,1785.9,1.12029]
[1743735935619,2.62618,1786.0,1785.9,1.12029]
[1743735935815,1.5059,1786.0,1785.9,1.12029]
[1743735936121,0.00840925,1786.1,1786.0,1.12024]
[1743735936319,0.00840925,1786.1,1786.0,4.32804]
[1743735936615,0.00840925,1786.1,1786.0,11.02604]
[1743735936820,1.1199,1786.6,1786.5,1.11991]
[1743735937014,2.64375,1786.7,1786.6,1.11987]
[1743735937225,1.11987,1786.6,1786.5,1.11988]
[1743735937521,1.5239,1786.7,1786.6,1.11987]
[1743735938012,1.5239,1786.7,1786.4,6.00774]
[1743735938013,2.6437,1786.7,1786.5,1.12828925]
[1743735938321,2.6437,1786.7,1786.6,1.11987]
[1743735938520,1.11987,1786.6,1786.5,0.00840925]
[1743735938721,2.64377,1786.6,1786.5,0.00840925]
[1743735939020,2.64377,1786.6,1786.5,1.12833925]
[1743735939214,1.5239,1786.6,1786.5,1.12833925]
[1743735939922,1.12514622,1786.8,1786.7,1.1198]
[1743735940114,0.00536622,1786.8,1786.5,0.00840925]
[1743735940716,1.12514622,1786.8,1786.7,1.1198]
[1743735941015,1.12514622,1786.8,1786.5,0.00840925]
[1743735941016,0.00536622,1786.8,1786.5,0.00840925]
[1743735941321,1.11986,1786.7,1786.6,1.11986]
[1743735941525,3.2078,1786.7,1786.5,0.00840925]
[1743735941718,1.11987,1786.6,1786.5,0.00840925]
[1743735942715,1.12015,1786.2,1786.0,9.1778]
[1743735942920,1.12011,1786.3,1785.9,9.78928]
[1743735943122,1.12011,1786.3,1786.2,1.12011]
[1743735943520,1.12014,1786.2,1786.1,1.12014]
[1743735943721,1.1201,1786.3,1786.2,1.1201]
[1743735944720,2.79998,1786.4,1786.0,4.64630925]
[1743735944913,1.12018,1786.1,1786.0,0.00840925]
[1743735945319,4.32798,1786.1,1786.0,0.00840925]
[1743735945719,3.2078,1786.3,1786.0,0.00840925]
[1743735945918,1.12016,1786.2,1786.1,1.12014]
[1743735946320,4.32787,1786.3,1786.2,1.12012]
[1743735946521,3.2078,1786.5,1786.4,1.11999]
[1743735947228,4.32773,1786.5,1786.4,1.11999]
[1743735947429,4.32777,1786.5,1786.4,1.11999]
[1743735947822,3.2078,1786.5,1786.3,1.4184]
[1743735948133,4.32776,1786.5,1786.4,1.11999]
[1743735948628,4.32773,1786.5,1786.4,1.11999]
[1743735949227,1.1201,1786.3,1786.2,1.12007]
[1743735949438,1.12003,1786.4,1786.3,1.12001]
[1743735949624,3.2078,1786.5,1786.1,4.29013]
[1743735949930,4.32776,1786.5,1786.4,1.11999]
[1743735950130,1.12008,1786.3,1786.2,1.12004]
[1743735950426,1.12005,1786.4,1786.3,1.12003]
[1743735950632,1.12007,1786.3,1786.2,1.12005]
[1743735951327,1.12002,1786.4,1786.3,1.12]
[1743735951535,4.32777,1786.5,1786.4,1.11999]
[1743735952323,1.12005,1786.4,1786.2,1.4093]
[1743735952529,1.12005,1786.3,1786.2,2.52935]
[1743735952918,1.12005,1786.3,1786.2,1.12005]
[1743735953128,1.12018,1786.1,1786.0,1.12862925]
[1743735954328,2.56257,1786.2,1786.1,1.12018]
[1743735954929,1.4424,1786.2,1786.1,1.12018]
[1743735955128,8.108,1786.5,1786.2,2.80016]
[1743735955428,3.956,1786.5,1786.4,1.11999]
[1743735955620,1.11989,1786.6,1786.5,1.11987]
[1743735955825,4.15336622,1786.8,1786.4,2.79989]
[1743735956020,1.12516622,1786.8,1786.7,1.1198]
[1743735956227,0.00536622,1786.8,1786.7,1.1198]
[1743735956732,1.1198,1786.7,1786.6,1.11981]
[1743735956932,1.40836622,1786.8,1786.7,1.1198]
[1743735957629,0.00536622,1786.8,1786.7,2.5213]
[1743735961928,0.00536622,1786.8,1786.7,5.0213]
[1743735962431,0.00536622,1786.8,1786.7,2.5213]
[1743735963633,0.00536622,1786.8,1786.7,5.7291]
[1743735963830,0.00536622,1786.8,1786.7,2.5213]
[1743735964133,1.12510622,1786.8,1786.7,2.5213]
[1743735964436,1.11983,1786.7,1786.6,1.11981]
[1743735964735,4.6288,1786.7,1786.1,6.74861]
[1743735964933,1.11999,1786.4,1786.3,1.11999]
[1743735965133,4.32776,1786.5,1786.4,1.11999]
[1743735965634,1.11991,1786.6,1786.5,1.11993]
[1743735965829,5.04091,1786.6,1786.5,1.11993]
[1743735966033,1.421,1786.6,1786.5,1.11993]
[1743735968644,2.54087,1786.6,1786.5,1.11993]
[1743735968845,1.421,1786.6,1786.5,1.11993]
[1743735970442,5.26714622,1786.8,1786.7,1.1198]
[1743735970934,6.66144622,1786.8,1786.7,1.1198]
[1743735971134,5.54166622,1786.8,1786.7,1.1198]
[1743735971333,1.1198,1786.7,1786.6,2.55951]
[1743735971537,1.11991,1786.6,1786.5,1.11989]
[1743735972133,2.51421,1786.6,1786.5,1.11989]
[1743735972332,2.51417,1786.6,1786.5,1.11989]
[1743735972535,1.3943,1786.6,1786.5,1.11989]
[1743735972744,2.51417,1786.6,1786.5,1.11989]
[1743735973241,1.3943,1786.6,1786.5,1.11989]
[1743735973435,2.51417,1786.6,1786.5,1.11989]
[1743735973635,2.51417,1786.6,1786.5,1.11993]
[1743735974043,1.3943,1786.6,1786.5,1.11993]
[1743735977039,1.3943,1786.6,1786.0,15.69153925]
[1743735977040,1.12018,1786.1,1786.0,0.00840925]
[1743735977241,7.3608,1786.1,1785.7,1.4445]
[1743735977437,4.6363,1786.0,1785.9,1.1203]
[1743735977838,5.75654,1786.0,1785.9,1.1203]
[1743735978037,4.6363,1786.0,1785.6,7.45354]
[1743735978234,5.75658,1786.0,1785.7,1.4445]
[1743735978440,5.75658,1786.0,1785.8,1.12032]
[1743735978739,2.54878,1786.0,1785.8,1.12037]
[1743735979039,4.22914,1786.0,1785.7,1.4445]
[1743735979242,1.12037,1785.8,1785.7,1.4445]
[1743735979447,1.12041,1785.8,1785.6,4.33663925]
[1743735979640,1.4368,1785.7,1785.6,5.82443925]
[1743735980742,2.55723,1785.7,1785.6,2.61669925]
[1743735981145,2.55723,1785.7,1785.6,1.49620925]
[1743735981342,2.55723,1785.7,1785.6,2.61669925]
[1743735982344,2.55723,1785.7,1785.6,1.49620925]
[1743735982545,2.55723,1785.7,1785.6,2.61669925]
[1743735982745,3.2078,1785.7,1785.6,1.49620925]
[1743735983043,2.8014,1785.5,1785.1,1.12075]
[1743735983245,2.80172,1785.3,1784.7,1.4795]
[1743735983445,1.12093,1784.9,1784.8,1.5231]
[1743735983644,3.2078,1785.1,1784.8,1.5231]
[1743735983846,1.12093,1784.9,1784.8,1.5231]
[1743735984043,1.12099,1784.8,1784.7,2.60052]
[1743735984243,2.62939,1784.8,1784.7,4.12362]
[1743735984535,2.62939,1784.8,1784.7,1.5231]
[1743735984740,1.5084,1784.8,1784.7,2.64416]
[1743735984942,2.62939,1784.8,1784.7,2.64416]
[1743735985238,1.5084,1784.8,1784.7,2.64416]
[1743735986544,1.12106,1784.7,1784.6,0.00840925]
[1743735986942,6.72456,1784.7,1784.6,0.00840925]
[1743735987946,5.6035,1784.7,1784.6,1.12952925]
[1743735988146,6.72456,1784.7,1784.6,1.12952925]
[1743735988649,5.6035,1784.7,1784.6,1.12952925]
[1743735988847,15.06023136,1784.8,1784.7,1.12106]
[1743735989149,15.06023136,1784.8,1784.7,2.60266]
[1743735989948,27.92591652,1784.8,1784.7,2.60266]
[1743735990342,5.18782701,1784.8,1784.7,9.26466]
[1743735991048,0.01674701,1784.8,1784.7,15.23466]
[1743735991754,7.01e-06,1784.8,1784.7,15.23466]
[1743735992051,0.00840925,1784.9,1784.8,1.12099]
[1743735992252,0.00840925,1784.9,1784.8,4.32879]
[1743735992550,0.00840925,1784.9,1784.8,6.82879]
[1743735993146,10.71563885,1785.1,1785.0,1.12087]
[1743735993350,10.71563885,1785.1,1785.0,8.49767]
[1743735993550,10.71563885,1785.1,1785.0,10.99767]
[1743735994152,10.71563885,1785.1,1785.0,12.46387]
[1743735995354,8.11270885,1785.1,1785.0,12.46387]
[1743735995651,4.62317885,1785.1,1785.0,18.43387]
[1743735995850,0.00840925,1785.2,1785.1,1.12081]
[1743735996053,9.25e-06,1785.2,1785.1,2.55241]
[1743735996251,9.25e-06,1785.2,1785.1,5.05241]
[1743735997054,9.25e-06,1785.2,1785.1,1.12081]
[1743735997442,1.41830925,1785.2,1785.1,1.12081]
[1743735998045,0.7065,1785.8,1785.7,1.12043]
[1743735999256,1.12049,1785.6,1785.5,4.32832]
[1743735999753,2.53877,1785.7,1785.6,1.12049]
[1743736000056,1.4183,1785.7,1785.6,1.12049]
[1743736000452,2.53873,1785.7,1785.6,1.12049]
[1743736000851,1.4183,1785.7,1785.6,1.12049]
[1743736001354,0.7065,1785.8,1785.7,1.12043]
[1743736001544,0.00840925,1785.9,1785.8,1.12037]
[1743736001748,0.00840925,1785.9,1785.8,2.63097]
[1743736002857,4.33650925,1785.9,1785.8,1.12037]
[1743736003056,1.12038,1785.8,1785.7,1.12039]
[1743736003251,1.4914,1785.8,1785.7,1.12039]
[1743736003550,2.61177,1785.8,1785.7,1.12039]
[1743736003757,1.4914,1785.8,1785.7,1.12039]
[1743736004356,2.61177,1785.8,1785.7,1.12039]
[1743736004653,1.12044,1785.7,1785.5,4.7184]
[1743736004857,1.4914,1785.6,1785.5,1.12049]
[1743736006663,2.61189,1785.6,1785.5,1.12049]
[1743736006961,1.4914,1785.6,1785.5,1.12049]
[1743736008062,1.12056,1785.5,1785.4,0.00840925]
[1743736008362,1.83486,1785.5,1785.4,0.00840925]
[1743736008557,5.74756,1785.5,1785.4,0.00840925]
[1743736009153,3.24756,1785.5,1785.4,0.00840925]
[1743736009362,5.74756,1785.5,1785.4,0.00840925]
[1743736010360,1.12083,1785.1,1785.0,1.1208]
[1743736011155,2.60243,1785.1,1785.0,1.1208]
[1743736011759,2.60243,1785.1,1785.0,1.12087]
[1743736012255,1.12087,1785.0,1784.9,1.12933925]
[1743736012454,2.61457,1785.0,1784.9,1.12933925]
[1743736012661,2.61457,1785.0,1784.9,0.00840925]
[1743736013063,0.7013,1785.2,1784.9,3.21620925]
[1743736013365,1.82204,1785.2,1785.1,1.12081]
[1743736013661,3.31574,1785.2,1785.1,1.12081]
[1743736013965,2.195,1785.2,1785.1,1.12081]
[1743736014171,1.12064,1785.4,1785.3,1.12068]
[1743736014464,5.82211,1785.5,1785.4,1.12062]
[1743736014658,4.32841,1785.5,1785.4,1.12062]
[1743736014863,3.2078,1785.5,1785.2,2.53232]
[1743736015064,3.2078,1785.5,1785.3,1.12068]
[1743736015065,1.12065,1785.4,1785.3,1.12068]
[1743736015258,1.12068,1785.3,1785.2,2.53229]
[1743736015454,1.12065,1785.4,1785.3,1.12067]
[1743736016357,1.12068,1785.4,1785.3,1.12068]
[1743736016775,4.32839,1785.5,1785.2,1.4116]
[1743736017064,1.12065,1785.4,1785.2,1.4116]
[1743736017366,3.2078,1785.5,1785.3,1.12068]
[1743736017662,1.12062,1785.4,1785.2,1.4116]
[1743736017862,4.32839,1785.5,1785.4,1.12062]
[1743736018365,1.12063,1785.4,1785.3,1.12067]
[1743736018768,1.12063,1785.4,1785.2,1.12069]
[1743736018968,4.32841,1785.5,1785.3,1.12068]
[1743736019167,1.5163,1785.6,1785.1,4.6572]
[1743736019369,0.7626,1785.6,1785.5,1.12056]
[1743736022071,2.80092,1785.8,1785.5,1.12056]
[1743736022274,1.12056,1785.5,1785.4,1.12058]
[1743736022568,1.12064,1785.4,1785.3,1.12064]
[1743736022970,3.914,1785.8,1785.7,1.12043]
[1743736023165,5.03437,1785.8,1785.7,1.12043]
[1743736023470,1.82657,1785.8,1785.7,1.12043]
[1743736023969,0.7062,1785.8,1785.7,1.12043]
[1743736024472,0.00840925,1785.9,1785.6,1.4331]
[1743736024473,0.00840925,1785.9,1785.8,1.12037]
[1743736024880,0.00840925,1785.9,1785.8,4.32817]
[1743736025167,0.00840925,1785.9,1785.6,8.7239]
[1743736025168,1.12041,1785.8,1785.6,8.7239]
[1743736025372,1.12043,1785.7,1785.6,9.84434]
[1743736025568,1.12041,1785.8,1785.7,1.12042]
[1743736026272,1.12043,1785.7,1785.6,5.76136]
[1743736026474,1.12042,1785.8,1785.7,1.12043]
[1743736027682,0.00840925,1785.9,1785.8,1.12037]
[1743736027882,1.12873925,1785.9,1785.8,1.12037]
[1743736028183,1.12037,1785.8,1785.7,2.66288]
[1743736029177,1.12037,1785.8,1785.7,1.5425]
[1743736029487,1.12049,1785.7,1785.5,7.09053]
[1743736029670,5.07163,1785.8,1785.5,7.5125]
[1743736029869,1.86383,1785.8,1785.7,1.12043]
[1743736030070,0.7434,1785.8,1785.7,1.12043]
[1743736030274,0.00840925,1785.9,1785.8,1.12037]
[1743736030571,0.00840925,1785.9,1785.8,2.61687]
[1743736031076,0.00840925,1785.9,1785.8,3.32347]
[1743736036480,0.00840925,1785.9,1785.8,5.82347]
[1743736036783,19.62582172,1786.3,1786.2,1.12012]
[1743736037085,18.88242172,1786.3,1786.2,1.12012]
[1743736037285,18.88242172,1786.3,1786.2,4.32792]
[1743736038374,21.44197172,1786.3,1786.2,4.32792]
[1743736039073,21.44197172,1786.3,1786.2,1.12012]
[1743736039788,1.4395,1786.3,1786.2,1.12012]
[1743736040290,1.12012,1786.2,1786.1,1.12854925]
[1743736040586,2.5596,1786.3,1786.2,1.12012]
[1743736040887,1.12012,1786.2,1786.1,1.12853925]
[1743736041086,2.61752,1786.2,1786.1,1.12853925]
[1743736041484,1.4974,1786.2,1786.1,1.12853925]
[1743736041881,2.61752,1786.2,1786.1,1.12853925]
[1743736042286,1.4974,1786.2,1786.1,1.12853925]
[1743736042487,2.61752,1786.2,1786.1,1.12853925]
[1743736042787,1.4974,1786.2,1786.1,1.12853925]
[1743736043184,0.00840925,1786.4,1786.1,1.12853925]
[1743736043389,1.53800925,1786.4,1786.3,1.12005]
[1743736044489,2.65799925,1786.4,1786.3,1.12005]
[1743736045486,1.53800925,1786.4,1786.3,1.12005]
[1743736049195,0.00840925,1786.4,1786.3,1.12005]
[1743736053396,1.47770925,1786.4,1786.3,1.12005]
[1743736056994,2.59769925,1786.4,1786.3,1.12005]
[1743736057599,1.47770925,1786.4,1786.3,1.12005]
[1743736058202,2.59769925,1786.4,1786.3,1.12005]
[1743736058402,1.47770925,1786.4,1786.3,1.12005]
[1743736059200,2.59769925,1786.4,1786.3,1.12005]
[1743736059397,1.12005,1786.3,1786.2,5.7916]
[1743736059600,1.12012,1786.2,1786.1,1.12857925]
[1743736059795,1.87222,1786.2,1786.1,0.00840925]
[1743736060498,2.80048,1786.1,1785.7,3.2078]
[1743736060801,1.12033,1785.9,1785.7,4.32818]
[1743736061099,1.5123,1785.8,1785.7,4.32818]
[1743736061903,0.7214,1786.0,1785.9,1.1203]
[1743736063804,2.2337,1786.0,1785.9,1.1203]
[1743736064204,2.2337,1786.0,1785.9,4.3281]
[1743736065006,0.7521,1786.2,1786.1,1.12018]
[1743736065706,1.87222,1786.2,1786.1,1.12018]
[1743736065906,2.2262,1786.2,1786.1,1.12018]
[1743736067006,1.4741,1786.2,1786.1,4.32798]
[1743736067203,0.76020925,1786.4,1786.3,1.12005]
[1743736067404,2.23060925,1786.4,1786.3,1.12005]
[1743736071408,3.35059925,1786.4,1786.3,1.12005]
[1743736071809,1.12006,1786.3,1786.2,1.12007]
[1743736072007,1.4485,1786.3,1786.2,1.12007]
[1743736073105,1.4485,1786.3,1786.2,2.64197]
[1743736075013,1.4485,1786.3,1786.2,1.12007]
[1743736075504,1.4485,1786.3,1786.2,2.64197]
[1743736076512,2.56855,1786.3,1786.2,2.64197]
[1743736076707,1.1202,1786.1,1786.0,1.12021]
[1743736077101,1.1203,1786.0,1785.8,1.12032]
[1743736077314,2.5901,1785.9,1785.8,1.12032]
[1743736078115,1.4698,1785.9,1785.8,1.12032]
[1743736078616,2.5901,1785.9,1785.8,1.12032]
[1743736079417,2.5901,1785.9,1785.7,5.84778]
[1743736079718,2.5901,1785.9,1785.7,5.84777]
[1743736080015,2.5901,1785.9,1785.7,5.84778]
[1743736080219,2.5901,1785.9,1785.7,4.7274]
[1743736080515,1.12037,1785.8,1785.7,5.84777]
[1743736080714,2.61647,1785.8,1785.7,3.2078]
[1743736080919,1.12043,1785.7,1785.6,0.00840925]
[1743736081109,2.61653,1785.7,1785.6,0.00840925]
[1743736081718,1.4961,1785.7,1785.6,1.12889925]
[1743736082913,2.61653,1785.7,1785.6,1.12889925]
[1743736083621,2.61653,1785.7,1785.6,0.00840925]
[1743736083822,3.31853,1785.7,1785.6,0.00840925]
[1743736084017,3.31853,1785.7,1785.6,1.12889925]
[1743736084620,2.1981,1785.7,1785.6,1.12889925]
[1743736084922,1.4961,1785.7,1785.6,1.12889925]
[1743736085325,2.61653,1785.7,1785.6,1.12889925]
[1743736085721,1.4961,1785.7,1785.6,1.12889925]
[1743736086321,2.61653,1785.7,1785.6,0.00840925]
[1743736088329,1.4961,1785.7,1785.6,1.12889925]
[1743736088824,21.71126857,1785.8,1785.7,1.12043]
[1743736089024,21.71126857,1785.8,1785.7,2.60803]
[1743736089323,20.98046857,1785.8,1785.7,2.60803]
[1743736089530,20.97205932,1785.8,1785.7,9.07713]
[1743736090024,2.79437911,1785.8,1785.7,9.07713]
[1743736090230,9.11e-06,1785.8,1785.7,9.07713]
[1743736090629,0.00840925,1786.4,1786.3,1.12005]
[1743736091232,1.12839925,1786.4,1786.3,1.5391]
[1743736091527,1.45490925,1786.4,1786.3,2.65915]
[1743736092030,2.57489925,1786.4,1786.3,1.5391]
[1743736092325,1.45490925,1786.4,1786.1,3.962]
[1743736092522,3.28333925,1786.4,1786.2,1.12012]
[1743736092729,2.16330925,1786.4,1786.3,1.12005]
[1743736093125,1.45490925,1786.4,1786.3,1.12005]
[1743736093333,0.00840925,1786.4,1786.3,1.12005]
[1743736094031,0.00840925,1786.4,1786.3,3.62005]
[1743736095734,0.00840925,1786.4,1786.3,4.05455665]
[1743736095920,9.25e-06,1786.4,1786.3,4.05455665]
[1743736096126,2.2024,1787.0,1786.3,4.05455665]
[1743736096127,3.9618,1787.2,1787.1,1.11955]
[1743736096333,6.55601,1787.2,1787.0,1.11956]
[1743736096633,5.4365,1787.2,1787.1,1.11955]
[1743736097232,6.55599,1787.2,1787.0,1.12796925]
[1743736097533,6.55599,1787.2,1787.0,2.52376925]
[1743736098030,6.55599,1787.2,1787.1,1.11955]
[1743736098227,5.4365,1787.2,1787.1,1.11955]
[1743736098432,1.4747,1787.2,1787.1,1.11955]
[1743736100522,2.59424,1787.2,1787.0,1.12799925]
[1743736100728,2.59424,1787.2,1787.0,0.00840925]
[1743736100928,1.4747,1787.2,1787.1,1.11955]
[1743736101824,0.76140925,1787.3,1787.2,1.11949]
[1743736102427,2.29400925,1787.3,1787.2,1.11949]
[1743736110033,2.29400925,1787.3,1787.2,2.59019]
[1743736112736,0.00840925,1787.3,1787.2,5.79799]
[1743736113037,9.25e-06,1787.3,1787.2,12.25599]
[1743736113241,9.25e-06,1787.3,1787.2,12.99229]
[1743736116038,9.25e-06,1787.3,1787.2,10.49229]
[1743736116939,9.25e-06,1787.3,1787.2,12.99229]
[1743736123048,9.25e-06,1787.3,1787.2,9.75499]
[1743736126149,9.25e-06,1787.3,1787.2,5.79799]
[1743736126345,2.50000925,1787.3,1787.0,0.00840925]
[1743736126548,1.11955,1787.1,1787.0,0.00840925]
[1743736126938,1.82945,1787.1,1787.0,0.00840925]
[1743736127143,3.37265,1787.1,1787.0,0.00840925]
[1743736127549,5.87265,1787.1,1787.0,0.00840925]
[1743736128250,2.2531,1787.1,1787.0,1.12801925]
[1743736128543,2.2531,1787.1,1787.0,4.33581925]
[1743736129255,2.2531,1787.1,1787.0,0.00840925]
[1743736129548,2.2531,1787.1,1787.0,1.12801925]
[1743736130756,3.37265,1787.1,1787.0,0.00840925]
[1743736131552,5.87265,1787.1,1787.0,0.00840925]
[1743736132055,4.7531,1787.1,1787.0,1.12801925]
[1743736132254,2.2531,1787.1,1787.0,1.12801925]
[1743736133450,2.2531,1787.1,1787.0,4.33581925]
[1743736134451,2.2531,1787.1,1787.0,1.12801925]
[1743736134651,3.37265,1787.1,1787.0,0.00840925]
[1743736135458,2.2531,1787.1,1787.0,1.12801925]
[1743736135654,3.37265,1787.1,1787.0,1.12801925]
[1743736135862,3.37265,1787.1,1787.0,0.00840925]
[1743736136255,2.2531,1787.1,1787.0,0.00840925]
[1743736136460,2.2531,1787.1,1787.0,1.12801925]
[1743736136757,2.2531,1787.1,1787.0,3.21620925]
[1743736136958,3.37265,1787.1,1787.0,0.00840925]
[1743736138757,2.2531,1787.1,1787.0,0.00840925]
[1743736139063,3.37265,1787.1,1787.0,0.00840925]
[1743736140460,8.7091,1787.1,1786.3,3.2078]
[1743736140655,1.11984,1786.7,1786.4,2.79998]
[1743736140858,1.11978,1786.8,1786.7,1.11976]
[1743736142056,1.11959,1787.1,1787.0,1.11954]
[1743736142263,6.00643925,1787.3,1786.9,1.11963]
[1743736142264,1.11966,1787.0,1786.9,1.11963]
[1743736142456,1.11971,1786.9,1786.8,1.11968]
[1743736142763,1.11968,1787.0,1786.9,1.11965]
[1743736143262,4.3274,1787.1,1787.0,1.11961]
[1743736143462,1.11954,1787.2,1787.1,1.1195]
[1743736143762,7.16480925,1787.3,1786.9,6.00694]
[1743736143957,8.28427925,1787.3,1786.9,6.00694]
[1743736144157,1.11949,1787.2,1787.0,2.58076]
[1743736144465,5.07646925,1787.3,1787.0,1.4612]
[1743736144658,9.25e-06,1787.3,1787.2,1.11949]
[1743736144962,9.25e-06,1787.3,1787.2,2.58069]
[1743736146159,9.25e-06,1787.3,1787.2,1.4612]
[1743736146363,9.25e-06,1787.3,1787.2,2.58069]
[1743736146566,9.25e-06,1787.3,1787.2,1.4612]
[1743736146863,9.25e-06,1787.3,1787.2,2.58069]
[1743736147359,9.25e-06,1787.3,1787.2,6.53669]
[1743736148661,9.25e-06,1787.3,1787.2,9.03669]
[1743736149559,9.25e-06,1787.3,1787.2,6.53669]
[1743736150065,9.25e-06,1787.3,1787.2,5.4172]
[1743736150268,9.25e-06,1787.3,1787.1,3.2078]
[1743736150657,9.25e-06,1787.3,1787.1,4.32734]
[1743736150858,9.25e-06,1787.3,1787.1,5.7995]
[1743736151663,9.25e-06,1787.3,1787.2,1.11949]
[1743736152062,9.25e-06,1787.3,1787.2,2.64619]
[1743736152465,9.25e-06,1787.3,1787.2,3.40719]
[1743736153159,9.25e-06,1787.3,1787.2,5.90719]
[1743736154570,9.25e-06,1787.3,1787.2,3.40719]
[1743736155667,9.25e-06,1787.3,1787.2,1.11949]
[1743736156063,9.25e-06,1787.3,1787.2,3.26749]
[1743736163965,2.50000925,1787.3,1786.8,2.79925]
[1743736164171,2.2057,1787.2,1787.1,1.11952]
[1743736165172,1.4601,1787.2,1787.1,2.54402]
[1743736165472,9.25e-06,1787.3,1787.2,1.11949]
[1743736165675,1.44970925,1787.3,1787.2,2.54399]
[1743736168172,2.56913925,1787.3,1787.2,1.4245]
[1743736168372,1.44970925,1787.3,1787.0,3.2078]
[1743736168564,2.61652,1787.2,1787.1,1.11955]
[1743736168769,1.497,1787.2,1787.1,1.11955]
[1743736169771,9.25e-06,1787.3,1787.2,1.11949]
[1743736169970,1.11948925,1787.3,1787.1,1.1195]
[1743736170269,1.49700925,1787.3,1787.0,3.2078]
[1743736170474,1.49700925,1787.3,1787.2,1.11949]
[1743736172675,9.25e-06,1787.3,1787.2,1.11949]
[1743736173375,9.25e-06,1787.3,1787.2,1.83039]
[1743736173576,9.25e-06,1787.3,1787.2,8.99219]
[1743736174375,1.43910925,1787.3,1787.2,4.32729]
[1743736174875,1.43910925,1787.3,1787.2,1.11949]
[1743736175875,1.43910925,1787.3,1787.1,4.32733]
[1743736176087,1.86059,1787.2,1787.1,3.2078]
[1743736176571,4.36059,1787.2,1787.1,3.2078]
[1743736176980,1.11961,1787.0,1786.9,1.11967]
[1743736177382,1.1197,1786.9,1786.8,1.11972]
[1743736177581,2.632,1786.9,1786.8,1.11972]
[1743736177771,1.5123,1786.9,1786.8,1.11972]
[1743736178474,0.7301,1787.0,1786.9,1.11968]
[1743736178676,1.5123,1787.1,1787.0,1.11961]
[1743736178880,1.5123,1787.1,1787.0,2.62231]
[1743736179983,1.5123,1787.1,1787.0,1.5027]
[1743736180187,1.5123,1787.1,1787.0,2.62231]
[1743736182081,1.5123,1787.1,1787.0,1.5027]
[1743736182283,1.5123,1787.1,1787.0,2.62231]